bitfinex/quotes_SOLUSD_20241214
["timestamp","ask_amount","ask_price","bid_price","bid_amount"]
[1734155192208,5.5319,225.96,225.86,7.46267222]
[1734155192531,23.776884,225.95,225.86,7.46267222]
[1734155193105,23.776884,225.95,225.88,7.46267222]
[1734155193636,23.776884,225.95,225.89,7.46267222]
[1734155193811,23.776884,225.95,225.84,8.54270223]
[1734155193812,23.776884,225.95,225.9,7.46267222]
[1734155194712,23.776884,225.95,225.89,7.46267222]
[1734155197538,23.776884,225.95,225.88,7.46267222]
[1734155198665,23.776884,225.95,225.89,7.46267222]
[1734155199242,23.776884,225.95,225.88,7.46267222]
[1734155199422,23.776884,225.95,225.89,7.46267222]
[1734155202135,23.776884,225.95,225.84,8.54270223]
[1734155202332,23.776884,225.95,225.89,7.46267222]
[1734155204243,23.776884,225.95,225.88,7.46267222]
[1734155209530,0.5344478,225.97,225.88,7.46267222]
[1734155220780,23.776884,225.96,225.86,7.46267222]
[1734155224772,23.776884,225.96,225.88,7.46267222]
[1734155225079,0.5344478,225.97,225.89,7.46267222]
[1734155226132,24.3113318,225.97,225.89,7.46267222]
[1734155227145,0.5344478,225.97,225.89,7.46267222]
[1734155231155,0.5344478,225.97,225.9,7.46267222]
[1734155233676,0.5344478,225.97,225.91,7.46267222]
[1734155236572,0.5344478,225.97,225.92,7.46267222]
[1734155237955,0.5344478,225.97,225.93,7.46267222]
[1734155241979,0.5344478,225.97,225.88,0.66386423]
[1734155242152,0.5344478,225.97,225.93,7.46267222]
[1734155249894,0.5344478,225.97,225.94,7.46267222]
[1734155250058,0.5344478,225.97,225.93,7.46267222]
[1734155250375,0.5344478,225.97,225.94,7.46267222]
[1734155253671,0.5344478,225.97,225.93,7.46267222]
[1734155253985,0.5344478,225.97,225.92,7.46267222]
[1734155257094,0.5344478,225.97,225.91,7.46267222]
[1734155259685,0.5344478,225.97,225.92,7.46267222]
[1734155261594,0.5344478,225.97,225.91,7.46267222]
[1734155261980,0.5344478,225.97,225.88,20.66388453]
[1734155262179,0.5344478,225.97,225.91,7.46267222]
[1734155262904,0.5344478,225.97,225.89,7.46267222]
[1734155265493,0.5344478,225.97,225.9,7.46267222]
[1734155265879,0.5344478,225.97,225.91,7.46267222]
[1734155266218,0.5344478,225.97,225.88,20.66392908]
[1734155266396,0.5344478,225.97,225.91,7.46267222]
[1734155267292,0.5344478,225.97,225.92,7.46267222]
[1734155272183,0.5344478,225.97,225.88,20.66392908]
[1734155272386,0.5344478,225.97,225.9,7.46267222]
[1734155272699,0.5344478,225.97,225.88,20.0]
[1734155272902,0.5344478,225.97,225.9,7.46267222]
[1734155275306,0.5344478,225.97,225.89,7.46267222]
[1734155278124,0.5344478,225.97,225.92,7.46267222]
[1734155278593,0.5344478,225.97,225.91,7.46267222]
[1734155281603,0.5344478,225.97,225.9,7.46267222]
[1734155281807,0.5344478,225.97,225.88,20.0]
[1734155282013,0.5344478,225.97,225.9,7.46267222]
[1734155284010,0.5344478,225.97,225.88,20.0]
[1734155284186,0.5344478,225.97,225.9,7.46267222]
[1734155285607,0.5344478,225.97,225.88,20.0]
[1734155285987,0.5344478,225.97,225.88,27.46267222]
[1734155288329,0.5344478,225.97,225.89,7.46267222]
[1734155291921,0.5344478,225.97,225.87,7.46267222]
[1734155292088,24.3113318,225.97,225.87,7.46267222]
[1734155294685,24.3113318,225.97,225.86,7.46267222]
[1734155294910,24.3113318,225.97,225.81,0.66402174]
[1734155294911,5.5319,225.96,225.81,0.66402174]
[1734155295111,23.776884,225.95,225.84,7.46267222]
[1734155295316,23.776884,225.95,225.79,7.906]
[1734155295506,23.776884,225.95,225.82,7.46267222]
[1734155297923,23.776884,225.95,225.83,7.46267222]
[1734155302100,23.776884,225.95,225.85,7.46267222]
[1734155303025,23.776884,225.95,225.86,7.46267222]
[1734155303329,23.776884,225.95,225.85,7.46267222]
[1734155303996,23.776884,225.95,225.84,7.46267222]
[1734155309422,23.776884,225.95,225.85,7.46267222]
[1734155310430,23.776884,225.93,225.85,7.46267222]
[1734155312620,23.776884,225.93,225.88,7.46267222]
[1734155315536,23.776884,225.93,225.87,7.46267222]
[1734155319916,23.776884,225.93,225.88,7.46267222]
[1734155321948,23.776884,225.93,225.89,7.46267222]
[1734155322117,0.5344478,225.97,225.89,7.46267222]
[1734155322316,0.5344478,225.97,225.9,7.46267222]
[1734155323321,0.5344478,225.97,225.91,7.46267222]
[1734155324843,0.5344478,225.97,225.93,7.46267222]
[1734155325232,0.5344478,225.97,225.89,20.0]
[1734155325445,0.5344478,225.97,225.91,7.46267222]
[1734155325757,0.5344478,225.97,225.92,7.46267222]
[1734155328140,0.5344478,225.97,225.87,0.66382056]
[1734155328345,0.5344478,225.97,225.89,20.0]
[1734155328517,0.5344478,225.97,225.92,7.46267222]
[1734155330457,0.5344478,225.97,225.87,0.66382056]
[1734155330651,0.5344478,225.97,225.91,7.46267222]
[1734155333396,0.5344478,225.97,225.89,20.0]
[1734155333582,0.5344478,225.97,225.91,7.46267222]
[1734155337370,0.5344478,225.97,225.9,7.46267222]
[1734155337579,0.5344478,225.97,225.86,5.20163681]
[1734155337892,0.5344478,225.97,225.89,7.46267222]
[1734155342771,0.5344478,225.97,225.86,5.20163681]
[1734155342971,0.5344478,225.97,225.89,7.46267222]
[1734155347295,0.5344478,225.97,225.9,7.46267222]
[1734155348175,0.5344478,225.97,225.91,7.46267222]
[1734155349890,0.5344478,225.97,225.93,7.46267222]
[1734155350190,0.5344478,225.97,225.92,7.46267222]
[1734155353500,0.5344478,225.97,225.93,7.46267222]
[1734155359098,0.5344478,225.97,225.92,7.46267222]
[1734155361611,0.5344478,225.97,225.93,7.46267222]
[1734155364990,0.5344478,225.97,225.89,20.66384462]
[1734155365310,0.5344478,225.97,225.93,7.46267222]
[1734155369028,0.5344478,225.97,225.89,20.66384462]
[1734155369226,0.5344478,225.97,225.93,7.46267222]
[1734155372224,0.5344478,225.97,225.94,7.46267222]
[1734155372402,0.5344478,225.97,225.89,20.66384462]
[1734155372611,0.5344478,225.97,225.93,7.46267222]
[1734155374728,0.5344478,225.97,225.96,7.46267222]
[1734155381533,0.5344478,225.97,225.96,13.45514236]
[1734155386232,0.5344478,225.97,225.96,15.05264236]
[1734155390239,2.08333332,226.0,225.99,20.0]
[1734155390448,2.08333332,226.0,225.99,27.46267222]
[1734155390738,2.08333332,226.0,225.99,33.45514236]
[1734155391714,2.08333332,226.0,225.99,25.99247014]
[1734155391936,2.08333332,226.0,225.99,33.45514236]
[1734155392932,2.08333332,226.0,225.99,25.99247014]
[1734155393344,2.08333332,226.0,225.99,33.45514236]
[1734155401056,2.08333332,226.0,225.99,25.99247014]
[1734155401260,2.08333332,226.0,225.99,33.45514236]
[1734155404753,2.08333332,226.0,225.99,25.99247014]
[1734155404956,2.08333332,226.0,225.99,33.45514236]
[1734155408546,2.08333332,226.0,225.99,20.0]
[1734155408904,2.08333332,226.0,225.99,7.46267222]
[1734155409057,2.08333332,226.0,225.99,8.12622134]
[1734155409871,2.08333332,226.0,225.99,0.66354912]
[1734155410050,2.08333332,226.0,225.99,8.12622134]
[1734155410668,2.08333332,226.0,225.93,0.12549]
[1734155410848,2.08333332,226.0,225.99,7.46267222]
[1734155415381,2.08333332,226.0,225.99,7.79448434]
[1734155415859,2.08333332,226.0,225.99,0.33181212]
[1734155416051,23.776884,225.99,225.96,7.46267222]
[1734155416663,23.776884,225.99,225.95,7.46267222]
[1734155417170,2.08333332,226.0,225.95,7.46267222]
[1734155417345,2.08333332,226.0,225.96,7.46267222]
[1734155418379,2.08333332,226.0,225.99,7.46267222]
[1734155419382,2.08333332,226.0,225.98,7.46267222]
[1734155419881,2.08333332,226.0,225.99,7.46267222]
[1734155430486,2.08333332,226.0,225.98,20.0]
[1734155430685,2.08333332,226.0,225.98,27.46267222]
[1734155430987,29.60652463,225.99,225.95,1.78673852]
[1734155431187,23.776884,225.99,225.9,0.33247863]
[1734155431414,23.776884,225.99,225.96,7.46267222]
[1734155431892,2.08333332,226.0,225.96,7.46267222]
[1734155432191,2.08333332,226.0,225.97,7.46267222]
[1734155433578,2.08333332,226.0,225.93,20.0]
[1734155433773,2.08333332,226.0,225.97,7.46267222]
[1734155434272,2.08333332,226.0,225.96,7.46267222]
[1734155436562,2.08333332,226.0,225.97,7.46267222]
[1734155440199,2.08333332,226.0,225.93,20.33226356]
[1734155440489,2.08333332,226.0,225.96,7.46267222]
[1734155446289,2.08333332,226.0,225.97,7.46267222]
[1734155446496,2.08333332,226.0,225.96,7.46267222]
[1734155450316,2.08333332,226.0,225.92,20.0]
[1734155450497,2.08333332,226.0,225.96,7.46267222]
[1734155454510,2.08333332,226.0,225.97,7.46267222]
[1734155457006,2.08333332,226.0,225.98,7.46267222]
[1734155457621,2.08333332,226.0,225.99,7.46267222]
[1734155458116,2.08333332,226.0,225.98,7.46267222]
[1734155458417,2.08333332,226.0,225.97,7.46267222]
[1734155460313,2.08333332,226.0,225.98,7.46267222]
[1734155460520,2.08333332,226.0,225.93,0.33231064]
[1734155460816,23.776884,225.98,225.92,20.0]
[1734155461120,23.776884,225.98,225.95,7.46267222]
[1734155461920,23.776884,225.99,225.95,7.46267222]
[1734155463323,24.60666841,225.99,225.95,7.46267222]
[1734155465920,5.0,225.98,225.9,0.33237335]
[1734155466110,5.0,225.93,225.86,5.08977451]
[1734155466329,23.776884,225.92,225.89,7.46267222]
[1734155467010,23.776884,225.92,225.88,7.46267222]
[1734155467326,23.776884,225.9,225.87,7.46267222]
[1734155468230,5.0,225.93,225.88,7.46267222]
[1734155468438,5.0,225.93,225.89,7.46267222]
[1734155468741,5.0,225.95,225.89,7.46267222]
[1734155469028,0.82995026,225.94,225.9,7.46267222]
[1734155470325,5.0,225.93,225.89,7.46267222]
[1734155470721,5.0,225.95,225.89,7.46267222]
[1734155470916,0.82999704,225.94,225.89,7.46267222]
[1734155471119,5.0,225.93,225.89,7.46267222]
[1734155471752,0.82999704,225.94,225.9,7.46267222]
[1734155472029,5.0,225.95,225.91,7.46267222]
[1734155472830,23.776884,225.96,225.91,7.46267222]
[1734155473024,5.0,225.99,225.94,7.46267222]
[1734155473221,5.82980391,225.99,225.94,7.46267222]
[1734155473604,5.0,225.97,225.94,7.46267222]
[1734155474721,5.0,225.97,225.93,7.46267222]
[1734155475020,0.8298413,225.96,225.91,7.46267222]
[1734155475418,28.776884,225.95,225.88,20.0]
[1734155475612,0.83000889,225.94,225.89,7.46267222]
[1734155475807,5.0,225.92,225.83,5.15821726]
[1734155476114,0.83007345,225.91,225.88,7.46267222]
[1734155476319,5.0,225.92,225.88,7.46267222]
[1734155477029,5.0,225.92,225.89,7.46267222]
[1734155482346,0.83000743,225.98,225.89,7.46267222]
[1734155482347,5.0,225.94,225.89,7.46267222]
[1734155482637,0.83000169,225.93,225.89,7.46267222]
[1734155486113,0.83000169,225.93,225.86,20.0]
[1734155486522,0.83000169,225.93,225.89,7.46267222]
[1734155489041,0.83000169,225.93,225.86,20.0]
[1734155489243,0.83000169,225.93,225.88,7.46267222]
[1734155489823,0.83000169,225.93,225.86,20.0]
[1734155490019,0.83000169,225.93,225.88,7.46267222]
[1734155490424,0.83000169,225.93,225.86,20.0]
[1734155490635,5.0,225.91,225.87,7.46267222]
[1734155490935,5.0,225.89,225.85,7.46267222]
[1734155491117,0.83018791,225.88,225.85,7.46267222]
[1734155491745,5.0,225.89,225.86,7.46267222]
[1734155491958,5.0,225.89,225.87,7.46267222]
[1734155492829,5.0,225.91,225.87,7.46267222]
[1734155493152,5.0,225.89,225.87,7.46267222]
[1734155493341,5.0,225.89,225.86,7.46267222]
[1734155494026,0.83016246,225.88,225.86,7.46267222]
[1734155494221,0.83016246,225.88,225.87,7.46267222]
[1734155494449,5.0,225.89,225.86,7.46267222]
[1734155497153,0.83015926,225.88,225.86,7.46267222]
[1734155497360,0.83015926,225.88,225.83,5.15821726]
[1734155497645,5.0,225.81,225.76,7.46267222]
[1734155499251,5.0,225.81,225.69,22.1928]
[1734155499425,5.0,225.81,225.76,7.46267222]
[1734155500364,5.0,225.81,225.75,7.46267222]
[1734155502661,5.0,225.79,225.72,20.0]
[1734155502869,5.0,225.79,225.73,7.46267222]
[1734155504138,5.0,225.79,225.72,7.46267222]
[1734155505547,0.83057375,225.78,225.72,7.46267222]
[1734155506463,0.8305816,225.78,225.72,7.46267222]
[1734155506676,5.0,225.79,225.72,7.46267222]
[1734155507382,0.83056126,225.78,225.72,7.46267222]
[1734155507738,5.0,225.79,225.72,7.46267222]
[1734155508061,5.0,225.79,225.73,7.46267222]
[1734155509341,5.0,225.82,225.75,7.46267222]
[1734155509671,0.83044522,225.81,225.75,7.46267222]
[1734155509870,5.0,225.8,225.75,7.46267222]
[1734155510368,5.0,225.82,225.77,7.46267222]
[1734155511366,5.0,225.84,225.78,7.46267222]
[1734155511676,0.83035712,225.83,225.78,7.46267222]
[1734155512246,0.83035712,225.83,225.77,7.46267222]
[1734155512948,5.0,225.82,225.77,7.46267222]
[1734155513769,5.0,225.84,225.77,7.46267222]
[1734155513960,5.0,225.84,225.78,7.46267222]
[1734155515145,1.5745,225.87,225.82,7.46267222]
[1734155515477,5.0,225.86,225.82,7.46267222]
[1734155517646,5.0,225.88,225.82,7.46267222]
[1734155517945,5.0,225.88,225.83,7.46267222]
[1734155518350,5.0,225.88,225.85,7.46267222]
[1734155518847,5.0,225.88,225.86,7.46267222]
[1734155519162,5.0,225.9,225.85,7.46267222]
[1734155519363,5.0,225.9,225.86,7.46267222]
[1734155521071,0.83008965,225.89,225.82,20.0]
[1734155521266,0.83008965,225.89,225.84,7.46267222]
[1734155521683,5.0,225.9,225.84,7.46267222]
[1734155522000,0.83011863,225.89,225.85,7.46267222]
[1734155523978,0.83011863,225.89,225.82,20.0]
[1734155524298,0.83011863,225.89,225.84,7.46267222]
[1734155524488,5.0,225.9,225.84,7.46267222]
[1734155524667,0.83012056,225.89,225.82,20.0]
[1734155524868,0.83012056,225.89,225.84,7.46267222]
[1734155525069,5.0,225.9,225.84,7.46267222]
[1734155525484,5.0,225.9,225.86,7.46267222]
[1734155525881,5.0,225.9,225.85,7.46267222]
[1734155526684,5.0,225.92,225.85,7.46267222]
[1734155527981,5.0,225.9,225.85,7.46267222]
[1734155531095,5.83004587,225.92,225.85,7.46267222]
[1734155532699,5.0,225.92,225.85,7.46267222]
[1734155533321,5.0,225.92,225.87,7.46267222]
[1734155535605,0.83002063,225.91,225.87,7.46267222]
[1734155535920,0.83002063,225.91,225.82,20.33317424]
[1734155536108,5.0,225.9,225.84,7.46267222]
[1734155536302,0.83014732,225.89,225.84,7.46267222]
[1734155536731,0.83014732,225.89,225.85,7.46267222]
[1734155540371,5.0,225.9,225.85,7.46267222]
[1734155545682,5.0,225.9,225.82,20.33317696]
[1734155545885,5.0,225.9,225.84,7.46267222]
[1734155549984,5.0,225.9,225.86,7.46267222]
[1734155550880,0.83011731,225.89,225.84,7.46267222]
[1734155551072,5.0,225.88,225.84,7.46267222]
[1734155551968,5.0,225.88,225.83,7.46267222]
[1734155552179,5.0,225.88,225.75,0.12549]
[1734155552381,0.83020645,225.87,225.83,7.46267222]
[1734155552685,5.0,225.88,225.84,7.46267222]
[1734155555408,0.83020473,225.87,225.84,7.46267222]
[1734155555609,5.0,225.88,225.84,7.46267222]
[1734155556393,5.0,225.9,225.84,7.46267222]
[1734155556596,5.0,225.88,225.84,7.46267222]
[1734155556794,0.83020551,225.89,225.84,7.46267222]
[1734155556983,5.0,225.88,225.84,7.46267222]
[1734155557792,5.0,225.88,225.8,20.0]
[1734155557993,5.0,225.88,225.84,7.46267222]
[1734155558705,5.0,225.88,225.85,7.46267222]
[1734155561982,5.0,225.9,225.84,7.46267222]
[1734155562178,5.0,225.88,225.84,7.46267222]
[1734155564906,5.0,225.88,225.8,20.0]
[1734155565207,5.0,225.86,225.81,7.46267222]
[1734155570314,5.0,225.86,225.82,7.46267222]
[1734155570520,0.83027211,225.85,225.81,7.46267222]
[1734155570816,0.83027211,225.85,225.8,7.46267222]
[1734155570817,5.0,225.84,225.8,7.46267222]
[1734155571324,5.0,225.82,225.78,7.46267222]
[1734155575012,5.0,225.82,225.79,20.0]
[1734155575197,5.0,225.82,225.77,7.46267222]
[1734155576709,5.0,225.82,225.79,20.0]
[1734155576918,5.0,225.82,225.77,7.46267222]
[1734155578017,5.0,225.82,225.79,20.0]
[1734155578215,5.0,225.82,225.78,7.46267222]
[1734155579313,5.0,225.82,225.76,17.11928053]
[1734155579314,5.0,225.82,225.79,27.46267222]
[1734155579622,5.83032736,225.84,225.79,27.46267222]
[1734155580599,5.83032736,225.84,225.79,7.46267222]
[1734155580911,5.0,225.82,225.76,17.11928053]
[1734155581106,0.83042419,225.81,225.78,7.46267222]
[1734155581311,5.0,225.82,225.78,7.46267222]
[1734155582110,5.0,225.82,225.79,7.46267222]
[1734155582921,5.0,225.84,225.79,7.46267222]
[1734155583614,0.83035135,225.83,225.79,7.46267222]
[1734155584006,5.0,225.82,225.79,7.46267222]
[1734155590025,5.0,225.85,225.81,7.46267222]
[1734155590203,5.0,225.87,225.82,7.46267222]
[1734155595141,5.0,225.85,225.82,7.46267222]
[1734155596237,5.0,225.85,225.79,20.0]
[1734155596426,5.0,225.85,225.81,7.46267222]
[1734155605141,5.0,225.85,225.82,7.46267222]
[1734155605323,5.0,225.87,225.82,7.46267222]
[1734155607427,5.0,225.85,225.82,7.46267222]
[1734155610958,5.0,225.85,225.79,20.0]
[1734155611251,5.0,225.85,225.83,20.0]
[1734155612026,5.0,225.85,225.84,23.776884]
[1734155624199,2.10790698,225.94,225.84,23.776884]
[1734155624347,6.5502,225.95,225.84,23.776884]
[1734155624665,0.83005388,225.94,225.84,23.776884]
[1734155625037,0.83005388,225.94,225.82,23.902374]
[1734155625777,0.83005388,225.94,225.82,31.36504622]
[1734155626089,0.83005388,225.94,225.82,23.902374]
[1734155631303,0.83005388,225.94,225.83,0.12549]
[1734155631988,0.83005388,225.94,225.84,0.12549]
[1734155632304,0.83005388,225.94,225.84,23.902374]
[1734155634385,0.83005388,225.94,225.84,0.12549]
[1734155637394,0.83005388,225.94,225.83,23.776884]
[1734155637602,0.83005388,225.94,225.82,23.776884]
[1734155637800,0.83005388,225.94,225.83,0.12549]
[1734155644605,0.83005388,225.94,225.82,23.776884]
[1734155644906,0.83005388,225.94,225.8,23.776884]
[1734155645106,11.6392,225.93,225.77,7.46267222]
[1734155645300,20.0,225.9,225.77,7.46267222]
[1734155645491,0.83005388,225.89,225.78,0.12549]
[1734155646089,0.83005388,225.89,225.78,7.58816222]
[1734155646287,0.83005388,225.89,225.79,23.776884]
[1734155647506,0.83005388,225.89,225.79,7.46267222]
[1734155647708,0.83005388,225.89,225.8,23.776884]
[1734155648610,0.83005388,225.89,225.82,23.776884]
[1734155648814,0.83005388,225.92,225.82,7.46267222]
[1734155648985,0.83005388,225.92,225.81,7.58816222]
[1734155649185,0.83005388,225.92,225.82,23.776884]
[1734155657506,1.6441,225.91,225.78,27.46267222]
[1734155657822,0.83005388,225.9,225.78,27.46267222]
[1734155658009,0.83005388,225.9,225.79,0.12549]
[1734155658216,0.83005388,225.9,225.75,1.6237]
[1734155658217,0.83005388,225.9,225.81,7.58816222]
[1734155658798,0.83005388,225.9,225.83,0.12549]
[1734155660295,0.83005388,225.9,225.81,7.46267222]
[1734155660601,0.83005388,225.9,225.82,7.46267222]
[1734155661005,5.0,225.85,225.72,4.34035633]
[1734155661301,5.0,225.85,225.82,7.46267222]
[1734155663421,5.0,225.85,225.82,0.12549]
[1734155663920,5.0,225.85,225.81,7.46267222]
[1734155664403,5.0,225.85,225.81,7.44948697]
[1734155667731,5.83026254,225.88,225.84,20.0]
[1734155667936,5.0,225.88,225.84,20.0]
[1734155668439,5.0,225.88,225.83,7.44948697]
[1734155673031,5.0,225.88,225.84,7.44948697]
[1734155678350,5.0,225.88,225.8,0.12549]
[1734155678351,5.0,225.88,225.85,7.44948697]
[1734155679555,5.0,225.88,225.82,0.12549]
[1734155679854,5.0,225.88,225.84,7.44948697]
[1734155684243,5.0,225.88,225.85,7.44948697]
[1734155686147,5.0,225.88,225.81,0.12549]
[1734155686452,5.0,225.88,225.85,7.44948697]
[1734155687526,5.0,225.88,225.86,7.44948697]
[1734155687948,5.0,225.9,225.87,7.44948697]
[1734155688149,5.0,225.9,225.88,7.44948697]
[1734155688333,5.0,225.9,225.89,7.44948697]
[1734155688750,5.0,225.9,225.88,7.44948697]
[1734155689045,5.0,225.9,225.87,7.44948697]
[1734155692340,5.0,225.9,225.85,20.0]
[1734155692554,5.0,225.9,225.85,27.44948697]
[1734155693357,5.0,225.9,225.86,7.44948697]
[1734155705271,5.0,225.9,225.84,20.0]
[1734155705456,5.0,225.88,225.84,20.0]
[1734155705674,5.0,225.86,225.77,11.0728]
[1734155705995,5.0,225.86,225.82,7.44948697]
[1734155706294,5.0,225.86,225.77,11.0728]
[1734155706463,5.0,225.86,225.82,7.44948697]
[1734155712876,5.0,225.86,225.83,7.44948697]
[1734155715694,5.0,225.86,225.78,24.027864]
[1734155716008,5.0,225.84,225.82,7.44948697]
[1734155716498,5.0,225.84,225.83,7.44948697]
[1734155718098,5.0,225.84,225.78,24.027864]
[1734155718303,5.0,225.84,225.77,20.12549]
[1734155718598,5.0,225.84,225.82,7.44948697]
[1734155720081,5.0,225.84,225.77,20.12549]
[1734155720082,5.0,225.84,225.83,7.44948697]
[1734155721191,5.0,225.84,225.81,20.0]
[1734155721607,5.0,225.84,225.82,7.44948697]
[1734155722101,5.0,225.86,225.82,7.44948697]
[1734155722972,5.0,225.86,225.83,7.44948697]
[1734155723195,14.11198697,225.9,225.84,7.44948697]
[1734155723196,5.0,225.88,225.84,7.44948697]
[1734155724330,5.0,225.88,225.83,7.44948697]
[1734155724331,5.0,225.86,225.83,7.44948697]
[1734155726095,5.83013688,225.88,225.83,7.44948697]
[1734155726312,5.0,225.86,225.83,7.44948697]
[1734155727270,5.0,225.86,225.84,7.44948697]
[1734155727475,5.0,225.86,225.85,7.44948697]
[1734155729206,5.0,225.86,225.84,7.44948697]
[1734155730885,5.0,225.86,225.82,0.12549]
[1734155731207,7.49264321,225.9,225.82,7.44948697]
[1734155731208,5.0,225.84,225.82,7.44948697]
[1734155733927,5.0,225.84,225.81,20.0]
[1734155734116,5.0,225.84,225.81,7.44948697]
[1734155737616,5.0,225.82,225.81,7.44948697]
[1734155740123,5.0,225.79,225.72,11.0753]
[1734155740324,5.0,225.77,225.75,7.44948697]
[1734155740915,5.0,225.77,225.76,7.44948697]
[1734155744896,4.91236909,225.77,225.76,7.44948697]
[1734155750322,4.91236909,225.75,225.74,7.44948697]
[1734155767371,4.91236909,225.75,225.74,7.57497697]
[1734155770262,4.91236909,225.78,225.74,7.57497697]
[1734155770471,4.91236909,225.75,225.74,0.12549]
[1734155771940,0.83046831,225.83,225.74,0.12549]
[1734155771941,4.91236909,225.78,225.74,0.12549]
[1734155772144,4.91236909,225.78,225.77,7.44948697]
[1734155775673,4.91236909,225.78,225.76,7.44948697]
[1734155775960,4.91236909,225.78,225.73,7.44948697]
[1734155776829,4.91236909,225.75,225.74,7.44948697]
[1734155780337,4.91236909,225.75,225.7,20.0]
[1734155780551,4.91236909,225.75,225.73,7.44948697]
[1734155781152,4.91236909,225.75,225.7,20.0]
[1734155781470,4.91236909,225.75,225.74,7.44948697]
[1734155782946,4.91236909,225.75,225.7,20.0]
[1734155783149,4.91236909,225.75,225.65,1.6395]
[1734155783471,1.5859,225.79,225.65,1.6395]
[1734155783472,4.91236909,225.72,225.69,7.44948697]
[1734155783763,4.91236909,225.7,225.69,7.44948697]
[1734155793863,6.4139,225.77,225.69,7.44948697]
[1734155793864,4.91236909,225.73,225.69,7.44948697]
[1734155794063,4.91236909,225.73,225.72,7.44948697]
[1734155798057,4.91236909,225.75,225.72,7.44948697]
[1734155798257,4.91236909,225.75,225.74,7.44948697]
[1734155798457,4.91236909,225.79,225.74,7.44948697]
[1734155798659,4.91236909,225.79,225.78,7.44948697]
[1734155808867,4.91236909,225.81,225.78,7.44948697]
[1734155809066,4.91236909,225.81,225.8,7.44948697]
[1734155812672,4.91236909,225.84,225.8,7.44948697]
[1734155812987,4.91236909,225.82,225.78,20.0]
[1734155813157,4.91236909,225.84,225.79,23.776884]
[1734155813359,4.91236909,225.82,225.79,23.776884]
[1734155814477,4.91236909,225.84,225.81,7.44948697]
[1734155814661,4.91236909,225.82,225.79,23.776884]
[1734155816259,4.91236909,225.82,225.81,7.44948697]
[1734155817383,4.91236909,225.84,225.81,7.44948697]
[1734155817589,4.91236909,225.84,225.83,7.44948697]
[1734155822178,4.91236909,225.86,225.83,7.44948697]
[1734155822383,4.91236909,225.86,225.85,7.44948697]
[1734155825079,4.91236909,225.86,225.84,7.44948697]
[1734155828187,4.91236909,225.86,225.77,9.061287]
[1734155828496,4.91236909,225.86,225.84,7.44948697]
[1734155829700,4.91236909,225.86,225.85,7.44948697]
[1734155830291,4.91236909,225.86,225.8,20.0]
[1734155830483,4.91236909,225.86,225.85,7.44948697]
[1734155830989,4.91236909,225.89,225.85,7.44948697]
[1734155831199,4.91236909,225.86,225.85,7.44948697]
[1734155831389,4.91236909,225.88,225.85,7.44948697]
[1734155833171,4.91236909,225.88,225.87,7.44948697]
[1734155836495,4.91236909,225.88,225.81,20.0]
[1734155836800,4.91236909,225.88,225.87,7.44948697]
[1734155853299,4.91236909,225.9,225.87,7.44948697]
[1734155853613,4.91236909,225.9,225.89,7.44948697]
[1734155854001,4.91236909,225.93,225.89,7.44948697]
[1734155854209,4.91236909,225.93,225.92,7.44948697]
[1734155858510,4.91236909,225.95,225.92,7.44948697]
[1734155858827,4.91236909,225.93,225.87,20.0]
[1734155860143,4.91236909,225.93,225.92,7.44948697]
[1734155860306,4.91236909,225.96,225.92,7.44948697]
[1734155860512,4.91236909,225.98,225.95,7.44948697]
[1734155860944,4.91236909,225.98,225.97,7.44948697]
[1734155866223,4.91236909,225.99,225.97,7.44948697]
[1734155866427,4.91236909,225.99,225.98,7.44948697]
[1734155869133,2.08333332,226.0,225.98,7.44948697]
[1734155869336,4.91236909,225.99,225.98,7.44948697]
[1734155869538,4.91236909,225.99,225.97,20.0]
[1734155869733,4.91236909,225.99,225.98,7.44948697]
[1734155883354,4.91236909,225.99,225.92,1.6623]
[1734155883646,4.91236909,225.99,225.98,7.44948697]
[1734155886735,6.99570241,226.0,225.98,7.44948697]
[1734155886953,6.99570241,226.0,225.99,7.44948697]
[1734155888349,2.08333332,226.0,225.99,7.44948697]
[1734155889553,6.99570241,226.0,225.99,7.44948697]
[1734155893986,2.08333332,226.0,225.99,7.44948697]
[1734155894271,6.99570241,226.0,225.99,7.44948697]
[1734155895074,2.08333332,226.0,225.99,7.44948697]
[1734155895273,6.99570241,226.0,225.99,7.44948697]